bitfinex-derivatives/quotes_BTCF0:USTF0_20251225
["timestamp","ask_amount","ask_price","bid_price","bid_amount"]
[1766692263136,0.0113483,88181.0,88169.0,0.1734501]
[1766692278147,0.0113485,88179.0,88169.0,0.1734501]
[1766692278843,0.011349,88175.0,88169.0,0.0769701]
[1766692279039,0.0113486,88178.0,88169.0,0.02]
[1766692280143,0.0113494,88172.0,88169.0,1e-07]
[1766692280348,0.0113491,88175.0,88169.0,1e-07]
[1766692283858,0.0001701,88182.0,88169.0,1e-07]
[1766692284057,0.0113484,88180.0,88165.0,1e-07]
[1766692284354,0.0113484,88180.0,88165.0,0.0100001]
[1766692284355,0.0113499,88169.0,88165.0,0.0100001]
[1766692286159,0.0113495,88172.0,88165.0,0.0100001]
[1766692291660,0.0113491,88175.0,88165.0,0.0100001]
[1766692292654,0.0113487,88178.0,88165.0,0.0100001]
[1766692296465,0.0568,88180.0,88166.0,0.0113501]
[1766692296762,0.0568,88180.0,88166.0,0.0413501]
[1766692298189,0.0568,88180.0,88166.0,0.03]
[1766692298790,0.0113485,88179.0,88166.0,0.03]
[1766692298993,0.0113487,88177.0,88166.0,0.03]
[1766692306197,0.0568,88180.0,88166.0,0.03]
[1766692306695,0.0113491,88174.0,88166.0,0.03]
[1766692307995,0.0113488,88177.0,88166.0,0.03]
[1766692327609,0.06948,88179.0,88168.0,0.0113498]
[1766692327805,0.0568,88183.0,88171.0,0.0113495]
[1766692328102,0.0358,88185.0,88173.0,0.0113492]
[1766692328610,0.0358,88185.0,88170.0,0.0113496]
[1766692328910,0.0358,88185.0,88170.0,0.0413496]
[1766692332911,0.0358,88185.0,88172.0,0.0113493]
[1766692333111,0.0088,88185.0,88172.0,0.0413493]
[1766692333311,0.0028,88185.0,88172.0,0.0413493]
[1766692333513,0.0113475,88187.0,88172.0,0.0413493]
[1766692333514,0.0568,88187.0,88175.0,0.0113489]
[1766692334108,0.0568,88187.0,88170.0,0.0568]
[1766692334318,0.0568,88191.0,88170.0,0.1641019]
[1766692335415,0.0568,88191.0,88178.0,0.0113485]
[1766692336217,0.068147,88191.0,88176.0,0.0113487]
[1766692337305,0.0113472,88189.0,88173.0,0.0113491]
[1766692337515,0.0113472,88189.0,88173.0,0.0413491]
[1766692338013,0.0568,88191.0,88173.0,0.03]
[1766692338201,0.0113477,88185.0,88173.0,0.03]
[1766692338407,0.0113474,88188.0,88173.0,0.03]
[1766692340510,0.0113474,88188.0,88173.0,0.0413492]
[1766692341015,0.0773019,88190.0,88173.0,0.0413492]
[1766692341217,0.068147,88191.0,88173.0,0.0413492]
[1766692342224,0.068147,88191.0,88175.0,0.0113489]
[1766692342413,0.068147,88191.0,88175.0,0.0413489]
[1766692345213,0.0773019,88190.0,88175.0,0.0413489]
[1766692346618,0.0773019,88190.0,88177.0,0.0113487]
[1766692349108,0.0773019,88190.0,88174.0,0.011349]
[1766692349418,0.068147,88191.0,88174.0,0.041349]
[1766692352220,0.068147,88191.0,88176.0,0.0113488]
[1766692352822,0.068147,88191.0,88173.0,0.0113491]
[1766692353021,0.068147,88191.0,88173.0,0.0413491]
[1766692354330,0.0773019,88190.0,88173.0,0.0413491]
[1766692355623,0.0113472,88189.0,88173.0,0.0413491]
[1766692363124,0.0113472,88189.0,88175.0,0.0113489]
[1766692363324,0.0113472,88189.0,88175.0,0.0413489]
[1766692367225,0.11796859,88191.0,88177.0,0.0113487]
[1766692367726,0.0113471,88190.0,88177.0,0.0113487]
[1766692369330,0.06116859,88186.0,88173.0,0.09648]
[1766692369529,0.06116859,88186.0,88173.0,0.12648]
[1766692370228,0.06116859,88186.0,88174.0,0.0113491]
[1766692370527,0.06116859,88186.0,88174.0,0.0413491]
[1766692374533,0.06116859,88186.0,88176.0,0.0113488]
[1766692375738,0.06116859,88186.0,88173.0,0.1078291]
[1766692375927,0.06116859,88186.0,88173.0,0.1378291]
[1766692379338,0.0113473,88188.0,88173.0,0.1378291]
[1766692379740,0.0113473,88188.0,88175.0,0.011349]
[1766692380038,0.0113473,88188.0,88176.0,0.0568]
[1766692380426,0.12931559,88191.0,88176.0,0.0568]
[1766692380721,0.12931559,88191.0,88177.0,0.0113487]
[1766692381127,0.00226777,88193.0,88183.0,0.0113479]
[1766692381329,0.06125143,88193.0,88185.0,0.0113476]
[1766692381540,0.0113459,88199.0,88183.0,0.0568]
[1766692383441,0.0113462,88197.0,88183.0,0.0568]
[1766692383740,0.0113462,88197.0,88183.0,0.0368]
[1766692385730,0.0113462,88197.0,88184.0,0.0113478]
[1766692389237,0.08155374,88218.0,88185.0,0.09648]
[1766692389535,0.0113431,88221.0,88205.0,0.011345]
[1766692389732,0.15328,88227.0,88186.0,0.04200255]
[1766692389733,0.15328,88227.0,88206.0,0.0568]
[1766692389933,0.1646223,88227.0,88206.0,0.0568]
[1766692390133,0.15328,88227.0,88206.0,0.0568]
[1766692390334,0.0113425,88226.0,88207.0,0.0113448]
[1766692391743,0.15328,88227.0,88206.0,0.0568]
[1766692391940,0.15328,88227.0,88206.0,0.0868]
[1766692392734,0.15328,88227.0,88214.0,0.0113439]
[1766692395241,0.0568,88227.0,88214.0,0.0113439]
[1766692395445,0.0568,88227.0,88211.0,0.0113443]
[1766692396550,0.01,88228.0,88211.0,0.0113443]
[1766692397447,0.0213422,88228.0,88211.0,0.0113443]
[1766692403248,0.01,88228.0,88213.0,0.011344]
[1766692403550,0.0113424,88227.0,88210.0,0.0113444]
[1766692403849,0.0113424,88227.0,88210.0,0.0413444]
[1766692409039,0.0113426,88225.0,88210.0,0.0413444]
[1766692413855,0.0113426,88225.0,88183.0,0.04084117]
[1766692413856,0.0113442,88213.0,88186.0,0.0113476]
[1766692414054,0.0113444,88211.0,88187.0,0.1532]
[1766692414252,0.0113444,88211.0,88196.0,0.0113462]
[1766692414449,0.0113444,88211.0,88197.0,0.1532]
[1766692414648,0.0113444,88211.0,88197.0,0.1832]
[1766692416252,0.0001701,88213.0,88198.0,0.011346]
[1766692416455,0.0001701,88213.0,88198.0,0.041346]
[1766692421163,0.0001701,88213.0,88200.0,0.0113457]
[1766692421465,0.0001701,88213.0,88200.0,0.0413457]
[1766692425667,0.0001701,88213.0,88202.0,0.0113455]
[1766692425865,0.0001701,88213.0,88203.0,0.05676]
[1766692442181,0.0001701,88213.0,88203.0,0.0681053]
[1766692442375,0.06091774,88230.0,88210.0,0.0113444]
[1766692442680,0.0113427,88224.0,88210.0,0.0113444]
[1766692444387,0.1632,88228.0,88210.0,0.0113444]
[1766692445282,0.1745422,88228.0,88203.0,0.05676]
[1766692445480,0.0113425,88226.0,88210.0,0.0113444]
[1766692445671,0.01,88228.0,88211.0,0.05676]
[1766692445869,0.01,88228.0,88212.0,0.05676]
[1766692446284,0.01,88228.0,88213.0,0.011344]
[1766692447683,0.0113423,88227.0,88213.0,0.011344]
[1766692452985,0.0113423,88227.0,88212.0,0.043104]
[1766692453187,0.0113423,88227.0,88213.0,0.011344]
[1766692457785,0.01,88228.0,88213.0,0.011344]
[1766692457993,0.0213422,88228.0,88213.0,0.011344]
[1766692458391,0.0113424,88226.0,88213.0,0.011344]
[1766692459991,0.0113424,88226.0,88212.0,0.031448]
[1766692460194,0.0113424,88226.0,88213.0,0.011344]
[1766692467187,0.0113424,88226.0,88212.0,0.024792]
[1766692467388,0.0113424,88226.0,88212.0,0.044792]
[1766692468299,0.0113424,88226.0,88213.0,0.011344]
[1766692474199,0.0113424,88226.0,88212.0,0.019136]
[1766692474409,0.0113424,88226.0,88212.0,0.039136]
[1766692474604,0.01,88228.0,88213.0,0.011344]
[1766692475695,0.01,88228.0,88212.0,0.019136]
[1766692475899,0.01,88228.0,88212.0,0.049136]
[1766692477309,0.01,88228.0,88217.0,0.0113435]
[1766692479308,0.01,88228.0,88214.0,0.011514]
[1766692479507,0.01,88228.0,88214.0,0.041514]
[1766692481512,0.01,88228.0,88214.0,0.022514]
[1766692482201,0.01,88228.0,88214.0,0.0338579]
[1766692488415,0.01,88228.0,88212.0,0.0193061]
[1766692488614,0.01,88228.0,88212.0,0.0493061]
[1766692490218,0.01,88228.0,88215.0,0.0113437]
[1766692491720,0.01,88228.0,88214.0,0.09644]
[1766692491922,0.01,88228.0,88214.0,0.10644]
[1766692494322,0.01,88228.0,88214.0,0.1177839]
[1766692495529,0.01,88228.0,88214.0,0.0967839]
[1766692498832,0.0113423,88227.0,88212.0,0.0001701]
[1766692499018,0.0113426,88225.0,88213.0,0.05676]
[1766692499223,0.0113426,88225.0,88214.0,0.05676]
[1766692499424,0.06091774,88224.0,88214.0,0.05676]
[1766692503233,0.06091774,88224.0,88214.0,0.03676]
[1766692509440,0.0213422,88228.0,88214.0,0.03676]
[1766692510441,0.0213422,88228.0,88214.0,0.01876]
[1766692510741,0.0113424,88226.0,88214.0,0.01876]
[1766692511344,0.0113427,88224.0,88214.0,0.01876]
[1766692512945,0.011343,88222.0,88206.0,0.0113449]
[1766692513146,0.011343,88222.0,88208.0,0.0113447]
[1766692513442,0.011343,88222.0,88208.0,0.0413447]
[1766692532053,0.0113432,88220.0,88208.0,0.03]
[1766692535055,0.0113429,88223.0,88208.0,0.03]
[1766692542162,0.0113431,88221.0,88208.0,0.03]
[1766692542950,0.06091774,88226.0,88209.0,0.0113446]
[1766692543150,0.0113432,88220.0,88209.0,0.03]
[1766692543553,0.0113435,88218.0,88209.0,0.01]
[1766692544059,0.0113431,88221.0,88209.0,0.01]
[1766692549166,0.01,88228.0,88209.0,0.01]
[1766692549368,0.011343,88222.0,88209.0,0.01]
[1766692549563,0.06091774,88226.0,88209.0,0.01]
[1766692549762,0.0113431,88221.0,88209.0,0.01]
[1766692549963,0.0113433,88219.0,88209.0,0.01]
[1766692559571,0.0113436,88217.0,88209.0,0.01]
[1766692561278,0.08857182,88220.0,88209.0,0.01]
[1766692563874,0.07722852,88220.0,88209.0,0.01]
[1766692577388,0.0113433,88219.0,88209.0,0.01]
[1766692584289,0.07722852,88220.0,88209.0,0.01]
[1766692584594,0.0113428,88223.0,88209.0,0.01]
[1766692589494,0.06091774,88222.0,88209.0,0.01]
[1766692590598,0.06091774,88222.0,88209.0,0.0213446]
[1766692592699,0.07226054,88223.0,88209.0,0.0213446]
[1766692592895,0.06091774,88222.0,88209.0,0.0213446]
[1766692593198,0.07226054,88223.0,88209.0,0.0213446]
[1766692599000,0.06091774,88223.0,88211.0,0.0113443]
[1766692599197,0.05676,88225.0,88211.0,0.0113443]
[1766692601808,0.0113427,88224.0,88208.0,0.0681047]
[1766692602107,0.0113427,88224.0,88210.0,0.0113444]
[1766692602494,0.0113427,88224.0,88208.0,0.0441044]
[1766692602695,0.0113427,88224.0,88208.0,0.0741044]
[1766692603207,0.0113427,88224.0,88210.0,0.0113444]
[1766692609310,0.05676,88225.0,88210.0,0.0113444]
[1766692609514,0.05676,88225.0,88209.0,0.0827844]
[1766692609713,0.05676,88225.0,88209.0,0.1127844]
[1766692610117,0.0681026,88225.0,88210.0,0.0113444]
[1766692617517,0.0681026,88225.0,88209.0,0.0781288]
[1766692617718,0.0681026,88225.0,88209.0,0.1081288]
[1766692618221,0.0681026,88225.0,88210.0,0.0113444]
[1766692622119,0.0681026,88225.0,88206.0,0.0001701]
[1766692622120,0.011344,88214.0,88204.0,0.05676]
[1766692622317,0.0681036,88217.0,88196.0,0.09644]
[1766692622523,0.0113439,88215.0,88197.0,0.05676]
[1766692622724,0.0113439,88215.0,88197.0,0.08676]
[1766692622925,0.0113441,88213.0,88197.0,0.098106]
[1766692627319,0.0001701,88214.0,88199.0,0.0113458]
[1766692627624,0.0001701,88214.0,88199.0,0.0413458]
[1766692628014,0.0001701,88214.0,88201.0,0.0113456]
[1766692628327,0.0001701,88214.0,88201.0,0.0413456]
[1766692631624,0.0001701,88214.0,88201.0,0.03]
[1766692640336,0.0001701,88214.0,88204.0,0.0113451]
[1766692651641,0.0001701,88214.0,88201.0,0.0113455]
[1766692651842,0.0001701,88214.0,88201.0,0.0413455]
[1766692666955,0.0001701,88214.0,88203.0,0.0113453]
[1766692667251,0.05676,88217.0,88203.0,0.0313453]
[1766692669154,0.05676,88217.0,88203.0,0.0113453]
[1766692670158,0.0113437,88216.0,88203.0,0.0113453]
[1766692679475,0.07226144,88216.0,88203.0,0.0113453]
[1766692682170,0.07226144,88216.0,88200.0,0.0113456]
[1766692682350,0.07226144,88216.0,88200.0,0.0413456]
[1766692688472,0.07226144,88216.0,88202.0,0.0113455]
[1766692689469,0.0113437,88216.0,88202.0,0.0113455]
[1766692690362,0.05676,88217.0,88204.0,0.0113452]
[1766692691473,0.0681036,88217.0,88204.0,0.0113452]
[1766692697277,0.0113439,88215.0,88201.0,0.0113455]
[1766692697479,0.0113439,88215.0,88201.0,0.0413455]
[1766692706689,0.0113439,88215.0,88201.0,0.0113455]
[1766692706886,0.0113439,88215.0,88201.0,0.0313455]
[1766692707689,0.05676,88217.0,88203.0,0.0113453]
[1766692709792,0.05676,88217.0,88205.0,0.0113451]
[1766692715195,0.0113437,88216.0,88202.0,0.0113454]
[1766692717494,0.011344,88214.0,88199.0,0.0113458]
[1766692717693,0.011344,88214.0,88199.0,0.0413458]
[1766692717891,0.011344,88214.0,88201.0,0.0113456]
[1766692721686,0.011344,88214.0,88201.0,0.0313456]
[1766692724196,0.0681037,88217.0,88201.0,0.0313456]
[1766692724599,0.0681037,88217.0,88201.0,0.0193456]
[1766692725200,0.0681037,88217.0,88201.0,0.0306912]
[1766692727624,0.0681037,88217.0,88203.0,0.0113454]
[1766692727813,0.0681037,88217.0,88203.0,0.0413454]
[1766692729613,0.12902144,88217.0,88203.0,0.0413454]
[1766692731724,0.12902144,88217.0,88203.0,0.0193454]
[1766692732223,0.12902144,88217.0,88203.0,0.0306908]
[1766692734229,0.0113438,88215.0,88203.0,0.0193454]
[1766692738930,0.0113438,88215.0,88203.0,0.0013454]
[1766692745932,0.0113438,88215.0,88202.0,0.0113455]
[1766692746140,0.0113438,88215.0,88202.0,0.03]
[1766692746437,0.0113441,88213.0,88202.0,0.03]
[1766692753043,0.0113441,88213.0,88202.0,0.009]
[1766692760147,0.0113441,88213.0,88197.0,0.0581061]
[1766692760337,0.0113441,88213.0,88197.0,0.0881061]
[1766692761552,0.0113441,88213.0,88199.0,0.0113458]
[1766692761748,0.0113441,88213.0,88199.0,0.0413458]
[1766692772262,0.07226154,88216.0,88201.0,0.0113456]
[1766692772463,0.07226154,88216.0,88201.0,0.0413456]
[1766692775067,0.011344,88214.0,88201.0,0.0413456]
[1766692778569,0.011344,88214.0,88201.0,0.03]
[1766692779573,0.0113442,88212.0,88201.0,0.03]
[1766692790882,0.0113439,88215.0,88201.0,0.03]
[1766692800188,0.0113441,88213.0,88201.0,0.03]
[1766692802689,0.0113441,88213.0,88201.0,0.0413456]
[1766692803084,0.0113438,88216.0,88201.0,0.0413456]
[1766692803291,0.0113438,88216.0,88203.0,0.0113453]
[1766692803588,0.0113438,88216.0,88203.0,0.0413453]
[1766692804788,0.0113438,88216.0,88203.0,0.03]
[1766692805090,0.011344,88214.0,88203.0,0.03]
[1766692815611,0.0681037,88217.0,88203.0,0.03]
[1766692815901,0.0001701,88219.0,88203.0,0.0413453]
[1766692816101,0.03576,88218.0,88203.0,0.0413453]
[1766692817302,0.0471034,88218.0,88203.0,0.0413453]
[1766692819504,0.06091774,88217.0,88203.0,0.0413453]
[1766692819698,0.10802114,88218.0,88203.0,0.0413453]
[1766692819892,0.0113437,88216.0,88203.0,0.03]
[1766692820398,0.011344,88214.0,88203.0,0.03]
[1766692836614,0.011344,88214.0,88203.0,0.01]
[1766692866449,0.07226134,88217.0,88203.0,0.01]
[1766692868653,0.07226134,88217.0,88203.0,0.0213453]
[1766692869047,0.06091774,88217.0,88203.0,0.0213453]
[1766692869255,0.09667774,88218.0,88203.0,0.0213453]
[1766692869551,0.03576,88218.0,88203.0,0.0213453]
[1766692869741,0.0001701,88219.0,88209.0,0.0113446]
[1766692869935,0.0001701,88219.0,88203.0,0.01]
[1766692869936,0.0113429,88223.0,88206.0,0.0113449]
[1766692870142,0.0113429,88223.0,88206.0,0.0413449]
[1766692870948,0.011513,88223.0,88206.0,0.0413449]
[1766692872351,0.011513,88223.0,88206.0,0.0183449]
[1766692872746,0.0113431,88221.0,88206.0,0.0296898]
[1766692872946,0.0113433,88219.0,88206.0,0.0183449]
[1766692879250,0.011343,88222.0,88206.0,0.0183449]
[1766692879452,0.011343,88222.0,88206.0,0.03]
[1766692881254,0.011343,88222.0,88206.0,0.0413449]
[1766692885155,0.011343,88222.0,88208.0,0.0113446]
[1766692886556,0.011343,88222.0,88199.0,0.0464495]
[1766692886759,0.011343,88222.0,88199.0,0.0764495]
[1766692887259,0.011343,88222.0,88208.0,0.0113446]
[1766692889062,0.068103,88222.0,88208.0,0.0113446]
[1766692889459,0.0001701,88223.0,88200.0,0.0113457]
[1766692889651,0.01,88228.0,88201.0,0.0113456]
[1766692889851,0.01,88228.0,88216.0,0.0113437]
[1766692890051,0.01,88228.0,88216.0,0.0413437]
[1766692890558,0.01,88228.0,88218.0,0.0113434]
[1766692892361,0.01,88228.0,88215.0,0.0113437]
[1766692892753,0.01,88228.0,88217.0,0.0113435]
[1766692892953,0.01,88228.0,88217.0,0.0313435]
[1766692893555,0.01,88228.0,88217.0,0.0103435]
[1766692894157,0.01,88228.0,88217.0,0.021687]
[1766692894864,0.01,88228.0,88219.0,0.0113433]
[1766692896860,0.01156766,88238.0,88222.0,0.0113429]
[1766692897068,0.00022666,88238.0,88225.0,0.0113424]
[1766692897267,0.00022666,88238.0,88225.0,0.0313424]
[1766692897457,0.00022666,88238.0,88227.0,0.0113422]
[1766692898458,0.00022666,88238.0,88224.0,0.0113426]
[1766692898660,0.00022666,88238.0,88224.0,0.0413426]
[1766692899864,0.01156766,88238.0,88224.0,0.03]
[1766692900670,0.01156766,88238.0,88224.0,0.016]
[1766692907772,0.01156766,88238.0,88224.0,0.003]
[1766692909468,0.0113412,88236.0,88224.0,0.003]
[1766692909668,0.0113414,88234.0,88224.0,0.003]
[1766692911476,0.0113418,88232.0,88224.0,0.003]
[1766692914984,0.0113418,88232.0,88224.0,0.03]
[1766692917174,0.07719657,88234.0,88214.0,0.0569301]
[1766692917382,0.0113423,88227.0,88214.0,0.0869301]
[1766692922584,0.0113423,88227.0,88214.0,0.0549301]
[1766692925483,0.0113422,88228.0,88214.0,0.066274]
[1766692928587,0.0113424,88226.0,88214.0,0.0549301]
[1766692928880,0.00016977,88229.0,88214.0,0.0549301]
[1766692928881,0.0113427,88224.0,88214.0,0.0549301]
[1766692929086,0.011343,88222.0,88214.0,0.03]
[1766692929774,0.011343,88222.0,88214.0,0.018]
[1766692930085,0.011343,88222.0,88215.0,0.00737]
[1766692930386,0.011343,88222.0,88215.0,0.03737]
[1766692936791,0.011343,88222.0,88215.0,0.02737]
[1766692939597,0.07719657,88225.0,88215.0,0.02737]
[1766692939991,0.05676,88224.0,88212.0,0.00017001]
[1766692940195,0.011344,88214.0,88203.0,0.05676]
[1766692940384,0.011344,88214.0,88203.0,0.08676]
[1766692942395,0.0113444,88211.0,88203.0,0.08676]
[1766692942696,0.05676,88210.0,88193.0,0.05902777]
[1766692942991,0.07719657,88203.0,88193.0,0.08902777]
[1766692943196,0.13395657,88210.0,88193.0,0.08902777]
[1766692943492,0.0113454,88203.0,88193.0,0.08919778]
[1766692943894,0.0113451,88206.0,88193.0,0.08919778]
[1766692955393,0.07719657,88203.0,88193.0,0.08919778]
[1766692955598,0.0113459,88200.0,88193.0,0.03]
[1766692956603,0.0113459,88200.0,88193.0,0.02982994]
[1766692957006,0.08854197,88203.0,88193.0,0.02982994]
[1766692957410,0.15439314,88203.0,88179.0,0.03055986]
[1766692957708,0.07719657,88200.0,88179.0,0.01]
[1766692957908,0.1532,88199.0,88186.0,0.0113475]
[1766692958204,0.1532,88198.0,88186.0,0.0413475]
[1766692958395,0.09644,88197.0,88186.0,0.0413475]
[1766692959101,0.09644,88197.0,88186.0,0.03]
[1766692959308,0.09644,88197.0,88188.0,0.0113472]
[1766692959510,0.09644,88197.0,88190.0,0.011347]
[1766692959710,5e-08,88196.0,88190.0,0.011347]
[1766692959905,0.09644,88197.0,88190.0,0.011347]
[1766692960207,0.07736658,88210.0,88183.0,0.00017001]
[1766692960509,0.07736658,88210.0,88198.0,0.011346]
[1766692961414,0.1532,88209.0,88198.0,0.011346]
[1766692961611,0.1532,88208.0,88198.0,0.011346]
[1766692961807,0.07736658,88210.0,88195.0,0.0113463]
[1766692962016,0.05676,88207.0,88195.0,0.0113463]
[1766692962403,0.07719657,88205.0,88189.0,0.0113472]
[1766692962601,0.07719657,88200.0,88189.0,0.0413472]
[1766692963915,0.07719657,88200.0,88189.0,0.0253472]
[1766692964305,0.07719657,88200.0,88189.0,0.0366944]
[1766692965999,0.07719657,88200.0,88186.0,0.0681075]
[1766692966205,0.07719657,88200.0,88186.0,0.0831075]
[1766692967013,0.05676,88199.0,88186.0,0.0263475]
[1766692969910,0.07719657,88196.0,88183.0,0.01151791]
[1766692970116,0.05676,88199.0,88183.0,0.04151791]
[1766692970322,0.1532,88199.0,88183.0,0.04151791]
[1766692970817,0.011346,88198.0,88183.0,0.04151791]
[1766692971720,0.02447849,88197.0,88183.0,0.04151791]
[1766692971921,0.011346,88198.0,88183.0,0.04151791]
[1766692972107,0.02447849,88197.0,88183.0,0.04151791]
[1766692972418,0.0113468,88192.0,88183.0,0.00917001]
[1766692972619,0.0113468,88192.0,88183.0,0.02]
[1766692972817,0.07719657,88193.0,88183.0,0.02]
[1766692973015,0.02448052,88192.0,88183.0,0.02]
[1766692973216,0.08124052,88191.0,88183.0,0.02]
[1766692973406,0.05676,88191.0,88183.0,0.02]
[1766692977422,0.02448209,88190.0,88183.0,0.02]
[1766692977618,0.05676,88191.0,88183.0,0.02]
[1766692977818,0.02448209,88190.0,88183.0,0.02]
[1766692978122,0.05676,88191.0,88183.0,0.02]
[1766692978311,0.02448209,88190.0,88183.0,0.02]
[1766692978516,0.05676,88191.0,88183.0,0.02]
[1766692978715,0.0244821,88190.0,88183.0,0.02]
[1766692978917,0.05676,88191.0,88183.0,0.02]
[1766692979111,0.0244821,88190.0,88183.0,0.02]
[1766692979310,0.05676,88191.0,88183.0,0.02]
[1766692979522,0.02448246,88190.0,88183.0,0.02]
[1766692979718,0.05676,88191.0,88183.0,0.02]
[1766692979919,0.02448246,88190.0,88183.0,0.02]
[1766692980122,0.05676,88191.0,88183.0,0.02]
[1766692980422,0.02448246,88190.0,88183.0,0.02]
[1766692980627,0.05676,88191.0,88178.0,0.00011354]
[1766692980819,0.0113482,88181.0,88163.0,0.00226854]
[1766692981121,0.05676,88191.0,88163.0,0.02226854]
[1766692981122,0.0113493,88173.0,88163.0,0.02226854]
[1766692981314,0.0113489,88176.0,88163.0,0.02226854]
[1766692981514,0.0113491,88174.0,88163.0,0.02226854]
[1766692981729,0.0113488,88177.0,88163.0,0.02226854]
[1766692981915,0.02447165,88176.0,88164.0,0.00498]
[1766692982117,0.02447165,88175.0,88164.0,0.03498]
[1766692982315,0.0113488,88177.0,88164.0,0.03498]
[1766692982516,0.02446234,88176.0,88164.0,0.03498]
[1766692982814,0.0113493,88173.0,88164.0,0.03498]
[1766692983025,0.0113493,88173.0,88154.0,0.09648]
[1766692983026,0.0568,88172.0,88148.0,0.0113524]
[1766692983219,0.0113501,88167.0,88150.0,0.0113521]
[1766692983528,0.0113503,88165.0,88150.0,0.03]
[1766692983726,0.0568,88164.0,88150.0,0.03]
[1766692985626,0.15328,88164.0,88150.0,0.03]
[1766692986825,0.15328,88164.0,88151.0,0.011352]
[1766692987034,0.15328,88164.0,88153.0,0.0113517]
[1766692987226,0.15328,88164.0,88153.0,0.0413517]
[1766692997336,0.1646304,88164.0,88153.0,0.03]
[1766692997737,0.1646304,88164.0,88153.0,0.009]
[1766692998732,0.15328,88164.0,88145.0,0.0568]
[1766692998932,0.0113519,88153.0,88137.0,0.0113537]
[1766692999128,0.00017011,88154.0,88141.0,0.0113533]
[1766692999328,0.00017011,88154.0,88141.0,0.0413533]
[1766692999329,0.0568,88153.0,88141.0,0.0413533]
[1766692999727,0.0568,88153.0,88143.0,0.0113531]
[1766692999926,0.0568,88153.0,88143.0,0.0413531]
[1766693006139,0.0113532,88143.0,88133.0,8.065e-05]
[1766693006439,0.15328,88142.0,88114.0,0.15328]
[1766693006634,0.011354,88137.0,88114.0,0.18328]
[1766693006840,0.00017021,88134.0,88114.0,0.18328]
[1766693007046,0.0568,88133.0,88121.0,0.0113559]
[1766693007242,0.0568,88133.0,88121.0,0.0413559]
[1766693007434,9.094e-05,88132.0,88121.0,0.03]
[1766693007743,0.09648,88131.0,88121.0,0.03]
[1766693008343,0.09648,88131.0,88116.0,0.0113565]
[1766693008542,0.09648,88131.0,88116.0,0.0413565]
[1766693009843,0.09648,88131.0,88116.0,0.004]
[1766693010248,0.0113556,88124.0,88116.0,0.004]
[1766693010451,0.05684,88123.0,88116.0,0.004]
[1766693011146,0.0113558,88122.0,88116.0,0.004]
[1766693011445,0.09652,88121.0,88116.0,0.004]
[1766693012234,0.05684,88120.0,88116.0,0.004]
[1766693012437,0.09652,88119.0,88116.0,0.004]
[1766693017250,0.09652,88119.0,88108.0,0.01]
[1766693017452,0.09652,88119.0,88108.0,0.04]
[1766693018253,0.0113563,88118.0,88108.0,0.04]
[1766693018643,0.09652,88119.0,88108.0,0.04]
[1766693018644,9.094e-05,88117.0,88108.0,0.04]
[1766693019637,0.09652,88118.0,88110.0,0.0113572]
[1766693019938,0.04184,88117.0,88110.0,0.0413572]
[1766693020138,0.05191488,88116.0,88110.0,0.0413572]
[1766693021157,0.05684,88116.0,88110.0,0.0413572]
[1766693022056,0.05684,88116.0,88110.0,0.03]
[1766693023144,0.0113565,88117.0,88110.0,0.03]
[1766693023344,0.05684,88116.0,88110.0,0.03]
[1766693023748,0.05684,88116.0,88110.0,0.015]
[1766693023948,0.05684,88116.0,88110.0,0.01]
[1766693024860,0.0113561,88120.0,88110.0,0.01]
[1766693025061,0.05684,88119.0,88110.0,0.01]
[1766693025254,0.0113569,88114.0,88108.0,0.01]
[1766693025462,0.0113565,88117.0,88108.0,0.03]
[1766693025849,0.0113568,88115.0,88108.0,0.03]
[1766693026152,0.011357,88113.0,88103.0,1e-08]
[1766693026355,0.011357,88113.0,88103.0,0.02000001]
[1766693026662,0.0113566,88116.0,88103.0,0.02000001]
[1766693027049,0.0681962,88119.0,88103.0,0.02000001]
[1766693027457,0.05684,88119.0,88103.0,0.02000001]
[1766693027657,0.0113565,88117.0,88103.0,0.02000001]
[1766693028458,0.05684,88119.0,88104.0,0.0113581]
[1766693028763,0.05684,88119.0,88108.0,0.0113575]
[1766693028951,0.05684,88119.0,88108.0,0.0413575]
[1766693031066,0.05684,88119.0,88110.0,0.0113573]
[1766693031250,0.05684,88119.0,88110.0,0.0413573]
[1766693033158,0.0113553,88127.0,88110.0,0.0413573]
[1766693033361,0.17781486,88126.0,88110.0,0.03]
[1766693033547,0.17781486,88125.0,88110.0,0.03]
[1766693033752,0.15336,88125.0,88110.0,0.03]
[1766693034259,0.02446836,88124.0,88113.0,0.0113569]
[1766693034461,0.15336,88125.0,88113.0,0.0413569]
[1766693034658,0.02446836,88124.0,88113.0,0.0413569]
[1766693034856,0.15336,88125.0,88113.0,0.0413569]
[1766693035048,0.02446837,88124.0,88113.0,0.0413569]
[1766693035251,0.02448905,88123.0,88113.0,0.0413569]
[1766693035462,0.02448905,88122.0,88113.0,0.0413569]
[1766693035763,0.15336,88125.0,88113.0,0.0413569]
[1766693036056,0.0244944,88124.0,88113.0,0.0413569]
[1766693036263,0.0244944,88123.0,88113.0,0.0413569]
[1766693036563,0.15336,88125.0,88113.0,0.0413569]
[1766693036564,0.0244944,88122.0,88113.0,0.0413569]
[1766693036749,0.0244944,88121.0,88113.0,0.0413569]
[1766693036955,0.0813344,88120.0,88115.0,0.0113566]
[1766693037165,0.05684,88119.0,88115.0,0.0113566]
[1766693038762,0.08874428,88130.0,88115.0,0.0113566]
[1766693039065,0.08874428,88130.0,88112.0,0.011357]
[1766693039066,0.17792537,88129.0,88112.0,0.011357]
[1766693039265,0.02452537,88128.0,88112.0,0.041357]
[1766693039560,0.08136537,88127.0,88112.0,0.03]
[1766693039763,0.00352537,88126.0,88120.0,0.011356]
[1766693040061,0.0113536,88140.0,88120.0,0.03]
[1766693040262,0.05684,88144.0,88130.0,0.08874418]
[1766693040470,0.08246913,88152.0,88134.0,0.0113541]
[1766693040658,0.0113523,88150.0,88134.0,0.0413541]
[1766693040858,0.06684,88152.0,88138.0,0.0113536]
[1766693041065,0.01,88152.0,88138.0,0.03]
[1766693041264,0.05688,88151.0,88138.0,0.03]
[1766693041463,0.01,88152.0,88138.0,0.03]